bitfinex-derivatives/quotes_SOLF0:USTF0_20250603
["timestamp","ask_amount","ask_price","bid_price","bid_amount"]
[1748988432099,0.04717586,154.99,154.97,42.34]
[1748988432307,0.04717586,154.99,154.96,0.04488721]
[1748988432506,6.49487586,154.99,154.96,0.04488721]
[1748988432702,0.04717586,154.99,154.96,0.04488721]
[1748988434510,6.448,154.98,154.96,0.04488721]
[1748988434712,0.04717586,154.99,154.96,0.04488721]
[1748988434914,4.2786,154.98,154.96,0.04488721]
[1748988435213,6.4484,154.97,154.96,0.04488721]
[1748988436317,4.2786,154.98,154.93,42.34]
[1748988436516,4.2786,154.98,154.91,6.4507]
[1748988436709,6.4495,154.95,154.92,6.4504]
[1748988436909,4.2786,154.98,154.89,53.55025927]
[1748988437109,0.04814606,154.95,154.92,6.49494252]
[1748988437913,0.04814606,154.95,154.92,0.04474252]
[1748988438118,11.25840533,154.95,154.92,0.04474252]
[1748988438312,6.4511,154.91,154.86,556.96]
[1748988438819,2.1666,154.94,154.86,556.96]
[1748988438820,11.21025927,154.93,154.86,556.96]
[1748988439312,0.04416796,154.91,154.88,0.04771138]
[1748988439515,6.4516,154.9,154.88,0.04771138]
[1748988439712,0.04416796,154.91,154.88,0.04771138]
[1748988440110,6.4516,154.9,154.88,0.04771138]
[1748988441017,6.4517,154.89,154.88,0.04771138]
[1748988441212,11.25442723,154.91,154.81,53.25025927]
[1748988441418,11.21025927,154.89,154.81,53.25025927]
[1748988441606,11.21025927,154.89,154.81,42.04]
[1748988441813,11.21025927,154.89,154.82,6.4544]
[1748988442012,11.21025927,154.89,154.81,42.04]
[1748988442216,0.04517148,154.87,154.83,0.03922003]
[1748988442411,0.04517148,154.87,154.83,6.49332003]
[1748988442812,0.04517148,154.87,154.83,0.03922003]
[1748988443324,6.49787148,154.87,154.83,6.49312003]
[1748988443523,6.49787148,154.87,154.83,0.03922003]
[1748988444021,6.453,154.86,154.83,0.03922003]
[1748988444225,0.04517148,154.87,154.83,0.03922003]
[1748988445113,0.04517148,154.87,154.84,6.4538]
[1748988445114,6.49807148,154.87,154.84,6.4538]
[1748988447825,0.04517148,154.87,154.84,11.21025927]
[1748988448326,0.04517148,154.87,154.86,6.453]
[1748988448628,0.04517148,154.87,154.84,11.21025927]
[1748988448825,0.04517148,154.87,154.83,0.03922003]
[1748988450028,0.04517148,154.87,154.86,6.453]
[1748988450824,42.06,154.95,154.86,53.27025927]
[1748988451023,6.4511,154.91,154.86,42.06]
[1748988451524,6.4524,154.88,154.86,42.06]
[1748988451727,11.25842315,154.89,154.85,0.04135275]
[1748988452629,6.4524,154.88,154.85,0.04135275]
[1748988452934,0.04816388,154.89,154.85,0.04135275]
[1748988454224,6.4522,154.88,154.85,6.49455275]
[1748988455433,6.4526,154.87,154.85,6.49455275]
[1748988455626,0.04816388,154.89,154.86,6.4528]
[1748988455827,0.04816388,154.89,154.85,0.04135275]
[1748988456228,0.04816388,154.89,154.87,6.4525]
[1748988456733,0.04816388,154.89,154.86,6.4529]
[1748988457436,6.4522,154.88,154.85,6.49465275]
[1748988457631,6.4522,154.88,154.85,0.04135275]
[1748988457832,6.453,154.86,154.85,0.04135275]
[1748988458340,6.4549,154.82,154.78,605.7162]
[1748988458532,11.21025927,154.86,154.78,48.5162]
[1748988458940,11.21025927,154.86,154.78,42.06]
[1748988459238,0.04255558,154.84,154.8,0.04248414]
[1748988461432,11.25281485,154.84,154.8,0.04248414]
[1748988461831,11.21025927,154.82,154.7,557.54]
[1748988462034,11.21025927,154.79,154.69,11.21025927]
[1748988462231,11.21025927,154.76,154.68,42.08]
[1748988462540,6.4581,154.74,154.7,6.4596]
[1748988462931,0.04337697,154.74,154.69,6.4599]
[1748988463138,0.04337697,154.74,154.68,42.08]
[1748988463333,6.4591,154.72,154.68,42.08]
[1748988463539,6.4591,154.72,154.69,6.46]
[1748988463734,0.04337697,154.74,154.69,6.46]
[1748988463940,6.4586,154.73,154.69,6.46]
[1748988464134,6.4586,154.73,154.68,42.08]
[1748988464135,0.04337697,154.74,154.68,42.08]
[1748988464535,0.04337697,154.74,154.68,53.29025927]
[1748988465248,0.04337697,154.74,154.73,6.4584]
[1748988465540,0.04337697,154.74,154.7,11.21025927]
[1748988465737,2.2236,154.81,154.72,11.21025927]
[1748988466531,42.08,154.82,154.74,11.21025927]
[1748988466841,6.50130709,154.8,154.77,6.4564]
[1748988467232,6.50130709,154.8,154.76,11.25419086]
[1748988467233,0.04580709,154.8,154.76,11.25419086]
[1748988468140,0.04580709,154.8,154.79,6.4559]
[1748988468643,0.04580709,154.8,154.76,11.25419086]
[1748988468839,0.04580709,154.8,154.76,0.04393159]
[1748988469140,0.04580709,154.8,154.77,6.4563]
[1748988469141,6.50130709,154.8,154.77,6.4563]
[1748988469339,0.04580709,154.8,154.76,0.04393159]
[1748988469736,0.04580709,154.8,154.78,6.456]
[1748988470138,0.04580709,154.8,154.76,11.25419086]
[1748988470335,0.04580709,154.8,154.79,6.4559]
[1748988474140,0.04580709,154.8,154.76,0.04393159]
[1748988477438,0.04580709,154.8,154.79,6.4559]
[1748988480146,6.4537,154.85,154.82,6.4544]
[1748988480347,2.1074,154.86,154.78,52.97025927]
[1748988480557,2.1074,154.86,154.81,11.21025927]
[1748988480844,2.1074,154.86,154.78,41.76]
[1748988480845,2.2279,154.91,154.83,11.21025927]
[1748988481049,2.2279,154.91,154.85,11.21025927]
[1748988481258,0.04834795,154.9,154.86,0.04411041]
[1748988483250,0.04834795,154.9,154.88,6.4519]
[1748988483554,0.04834795,154.9,154.86,0.04411041]
[1748988483742,0.04834795,154.9,154.87,6.4524]
[1748988483948,0.04834795,154.9,154.86,0.04411041]
[1748988485952,6.49974795,154.9,154.87,6.4523]
[1748988486153,0.04834795,154.9,154.86,11.25436968]
[1748988486554,0.04834795,154.9,154.89,6.4517]
[1748988488344,4.795e-05,154.9,154.89,6.4517]
[1748988488747,4.4668,154.98,154.94,6.4494]
[1748988488950,4.4668,154.98,154.92,11.21025927]
[1748988489354,4.4668,154.98,154.93,6.4497]
[1748988489551,6.4486,154.97,154.92,11.21025927]
[1748988489956,0.041151,154.96,154.94,6.4496]
[1748988490147,0.041151,154.96,154.93,0.04502141]
[1748988490357,0.041151,154.96,154.95,6.4492]
[1748988491959,0.041151,154.96,154.93,41.78502141]
[1748988492252,0.041151,154.96,154.94,6.4496]
[1748988493558,0.041151,154.96,154.95,6.4492]
[1748988495055,5.1e-05,154.96,154.95,6.4492]
[1748988495261,6.4465,155.02,154.99,6.4474]
[1748988496258,0.04812215,155.02,155.0,6.4471]
[1748988496455,0.04812215,155.02,154.99,0.04510649]
[1748988496853,6.49462215,155.02,154.99,6.49240649]
[1748988497050,0.04812215,155.02,154.99,0.04510649]
[1748988497457,6.4471,155.0,154.99,0.04510649]
[1748988498463,4.3366,155.07,154.99,59.44317581]
[1748988498763,2.0775,155.13,155.06,11.21806932]
[1748988498963,6.3936,155.13,155.06,11.21806932]
[1748988499159,6.3936,155.13,155.07,6.444]
[1748988499361,6.4426,155.11,155.07,6.444]
[1748988499561,6.48562663,155.11,155.07,6.48503036]
[1748988499863,0.04302663,155.11,155.07,6.48503036]
[1748988500053,0.04302663,155.11,155.08,6.4438]
[1748988500254,0.04302663,155.11,155.07,0.04103036]
[1748988500459,0.04302663,155.11,155.1,6.443]
[1748988501153,0.04302663,155.11,155.07,0.04103036]
[1748988502259,6.4438,155.08,155.07,0.04103036]
[1748988502559,11.26109595,155.11,155.04,41.4]
[1748988502765,11.21806932,155.11,155.04,41.4]
[1748988503065,41.38,155.1,155.01,11.21806932]
[1748988503564,0.04296837,155.07,155.04,0.04833145]
[1748988503862,6.4447,155.06,155.04,0.04833145]
[1748988504965,6.48746837,155.07,155.04,6.49383145]
[1748988505557,0.04296837,155.07,155.05,6.445]
[1748988506366,6.48716837,155.07,155.04,6.49363145]
[1748988507054,0.04296837,155.07,155.05,6.4449]
[1748988508055,0.04296837,155.07,155.06,6.4447]
[1748988510759,10.7579,155.13,155.1,6.4429]
[1748988510957,4.3161,155.13,155.09,11.21806932]
[1748988511362,4.3161,155.13,155.11,6.4422]
[1748988512665,2.268,155.13,155.12,6.4422]
[1748988512862,64.3358,155.33,155.12,41.38]
[1748988513173,17.61936932,155.24,155.15,17.65866932]
[1748988513358,17.61936932,155.24,155.15,11.21806932]
[1748988513863,0.04465031,155.21,155.18,0.04794464]
[1748988514264,6.48305031,155.21,155.18,0.04794464]
[1748988514466,0.04465031,155.21,155.19,11.21806932]
[1748988515262,0.04465031,155.21,155.18,0.04794464]
[1748988515665,0.04465031,155.21,155.18,6.48724464]
[1748988515862,0.04465031,155.21,155.18,0.04794464]
[1748988516069,6.4388,155.2,155.17,41.36]
[1748988516370,0.04465031,155.21,155.15,11.21806932]
[1748988516563,6.4395,155.19,155.15,6.4406]
[1748988516764,0.04465031,155.21,155.15,6.4406]
[1748988516960,0.04465031,155.21,155.13,52.57806932]
[1748988517166,0.04465031,155.21,155.15,0.04972254]
[1748988517765,6.4395,155.19,155.16,6.4404]
[1748988518068,0.04465031,155.21,155.15,11.26779186]
[1748988518263,6.4389,155.2,155.17,6.4398]
[1748988518469,0.04465031,155.21,155.15,11.26779186]
[1748988518668,0.04465031,155.21,155.17,11.21806932]
[1748988518863,6.48325031,155.21,155.18,6.4394]
[1748988519270,0.04465031,155.21,155.17,11.21806932]
[1748988519470,0.04465031,155.21,155.18,6.4396]
[1748988519768,0.04465031,155.21,155.17,11.21806932]
[1748988519969,0.04465031,155.21,155.2,6.4388]
[1748988523167,6.4362,155.27,155.19,0.04635582]
[1748988523369,13.32023063,155.32,155.2,52.52903063]
[1748988523370,11.18903063,155.3,155.2,52.52903063]
[1748988523566,11.18903063,155.3,155.22,6.4379]
[1748988523772,2.1861,155.29,155.2,41.34]
[1748988524072,0.04934311,155.26,155.23,0.04867481]
[1748988524272,6.48584311,155.26,155.23,0.04867481]
[1748988524470,4.54066298,155.25,155.23,0.04867481]
[1748988524773,6.4368,155.25,155.23,0.04867481]
[1748988525065,0.04934311,155.26,155.23,0.04867481]
[1748988525459,6.4372,155.24,155.23,0.04867481]
[1748988525661,4.54064349,155.24,155.2,41.34]
[1748988525862,2.1823,155.25,155.17,567.72903063]
[1748988526268,2.1823,155.25,155.17,11.18903063]
[1748988526468,2.1823,155.25,155.18,6.4396]
[1748988526676,0.04328671,155.23,155.2,0.04351295]
[1748988526983,6.4385,155.21,155.2,0.04351295]
[1748988527768,0.04328671,155.23,155.2,0.04351295]
[1748988527769,6.4381,155.22,155.2,0.04351295]
[1748988528164,4.54214841,155.21,155.2,0.04351295]
[1748988528471,6.48088671,155.23,155.2,6.48211295]
[1748988528773,0.04328671,155.23,155.2,0.04351295]
[1748988529272,6.438,155.22,155.2,0.04351295]
[1748988529465,0.04328671,155.23,155.2,0.04351295]
[1748988529664,6.4384,155.21,155.2,0.04351295]
[1748988531667,10.98940795,155.21,155.2,0.04351295]
[1748988531981,4.55040217,155.21,155.16,41.34]
[1748988532271,0.04328671,155.23,155.16,41.34]
[1748988532478,6.4392,155.2,155.16,41.34]
[1748988532672,4.55056841,155.19,155.16,41.34]
[1748988532871,4.55055556,155.18,155.17,11.18903063]
[1748988533171,4.55061546,155.18,155.17,11.18903063]
[1748988533366,4.55114055,155.18,155.17,17.62883063]
[1748988533563,4.55094529,155.18,155.17,17.62883063]
[1748988533775,4.55094524,155.18,155.17,17.62883063]
[1748988534176,0.04307809,155.19,155.17,17.62883063]
[1748988534376,0.04307809,155.19,155.18,6.4397]
[1748988534678,0.04307809,155.19,155.17,11.18903063]
[1748988535078,4.55059752,155.18,155.17,11.18903063]
[1748988535280,4.55059752,155.18,155.17,17.62883063]
[1748988535480,0.04307809,155.19,155.17,11.18903063]
[1748988535780,0.04307809,155.19,155.18,6.4397]
[1748988536077,4.58211264,155.19,155.18,6.4397]
[1748988536380,0.04307809,155.19,155.18,6.4397]
[1748988536573,0.04307809,155.19,155.17,6.4399]
[1748988536973,0.04307809,155.19,155.16,52.57418668]
[1748988537173,0.04307809,155.19,155.18,6.4397]
[1748988537374,0.04307809,155.19,155.18,17.62873063]
[1748988538369,4.57812046,155.19,155.18,17.62873063]
[1748988538571,0.04307809,155.19,155.18,17.62873063]
[1748988541178,6.4358,155.28,155.18,21.36167126]
[1748988541383,6.4358,155.28,155.24,7.46095141]
[1748988541586,6.4358,155.28,155.25,6.4365]
[1748988541786,6.4353,155.29,155.25,6.4365]
[1748988542082,0.04530101,155.29,155.26,6.4361]
[1748988542286,4.53178486,155.28,155.26,6.4361]
[1748988542482,4.53178486,155.27,155.26,13.89705141]
[1748988542883,6.48060101,155.29,155.26,13.89705141]
[1748988543078,4.53190696,155.28,155.27,6.4358]
[1748988543278,0.04530101,155.29,155.27,6.4358]
[1748988543682,0.04530101,155.29,155.28,6.4355]
[1748988543894,4.59183242,155.29,155.25,0.04327506]
[1748988544079,0.04530101,155.29,155.25,0.04327506]
[1748988544282,0.04530101,155.29,155.28,6.4355]
[1748988544477,4.59161157,155.29,155.28,6.4355]
[1748988544676,0.04530101,155.29,155.28,6.4355]
[1748988544985,4.59189634,155.29,155.28,6.4355]
[1748988545279,4.59183452,155.29,155.28,6.4355]
[1748988545485,0.04530101,155.29,155.28,6.4355]
[1748988545981,4.59807509,155.29,155.28,6.4355]
[1748988546181,0.04530101,155.29,155.28,6.4355]
[1748988546387,4.59789137,155.29,155.28,6.4355]
[1748988546583,0.04530101,155.29,155.28,6.4355]
[1748988547887,4.59816184,155.29,155.28,6.4355]
[1748988548084,0.04530101,155.29,155.28,6.4355]
[1748988548291,4.59852937,155.29,155.28,6.4355]
[1748988548484,4.60227674,155.29,155.28,6.4355]
[1748988548689,4.60227832,155.29,155.28,6.4355]
[1748988548886,0.04530101,155.29,155.28,6.4355]
[1748988549086,4.6023555,155.29,155.25,0.04327506]
[1748988549388,0.04530101,155.29,155.25,0.04327506]
[1748988549982,6.4364,155.26,155.25,0.04327506]
[1748988550180,11.01534342,155.26,155.25,0.04327506]
[1748988550392,6.4361,155.27,155.25,0.04327506]
[1748988550785,4.57993176,155.26,155.25,0.04327506]
[1748988550996,6.4364,155.26,155.25,0.04327506]
[1748988551589,11.01644059,155.26,155.25,0.04327506]
[1748988551790,6.4364,155.26,155.25,0.04327506]
[1748988552986,11.01658066,155.26,155.25,0.04327506]
[1748988553194,6.4364,155.26,155.25,0.04327506]
[1748988554284,4.54892675,155.26,155.25,0.04327506]
[1748988554489,0.04530101,155.29,155.25,11.23379914]
[1748988554691,4.54991069,155.28,155.25,11.23379914]
[1748988554997,0.04530101,155.29,155.27,6.4356]
[1748988555295,0.04530101,155.29,155.25,11.23379914]
[1748988555886,0.04530101,155.29,155.28,6.4355]
[1748988556089,4.59600089,155.29,155.28,6.4355]
[1748988556489,0.04530101,155.29,155.28,6.4355]
[1748988557692,4.6178337,155.29,155.28,6.4355]
[1748988557993,0.04530101,155.29,155.28,6.4355]
[1748988558394,4.61797639,155.29,155.28,6.4355]
[1748988558592,0.04530101,155.29,155.28,6.4355]
[1748988559201,0.04530101,155.29,155.28,47.4155]
[1748988559896,4.62059068,155.29,155.28,47.4155]
[1748988560096,0.04530101,155.29,155.28,47.4155]
[1748988560291,5.582e-05,155.29,155.28,47.4155]
[1748988560503,4.3231,155.37,155.32,6.4336]
[1748988560892,10.7551,155.37,155.32,11.19052408]
[1748988561188,4.3231,155.37,155.32,11.19052408]
[1748988561392,0.04163548,155.36,155.33,0.04080877]
[1748988561701,6.47393548,155.36,155.33,6.47400877]
[1748988562103,6.4328,155.35,155.33,0.04080877]
[1748988563201,6.47403548,155.36,155.33,7.493969]
[1748988563402,6.47403548,155.36,155.33,13.927169]
[1748988563609,6.4327,155.35,155.33,13.927169]
[1748988563797,6.4327,155.35,155.33,7.493969]
[1748988564905,6.47403548,155.36,155.33,13.927369]
[1748988565399,6.4329,155.35,155.33,7.493969]
[1748988566704,6.4329,155.35,155.33,13.927269]
[1748988567104,6.47403548,155.36,155.33,13.927269]
[1748988568506,0.04163548,155.36,155.33,7.493969]
[1748988568905,6.4329,155.35,155.33,7.493969]
[1748988569106,6.4329,155.35,155.33,13.927369]
[1748988569297,0.04163548,155.36,155.33,0.04080877]
[1748988569503,0.04163548,155.36,155.34,7.45316023]
[1748988570307,6.47413548,155.36,155.34,7.45316023]
[1748988570911,0.04163548,155.36,155.35,7.45316023]
[1748988571906,0.04163548,155.36,155.35,6.4326]
[1748988572108,0.04163548,155.36,155.33,0.04080877]
[1748988572109,0.04163548,155.36,155.34,7.45316023]
[1748988572405,4.5594998,155.35,155.34,7.45316023]
[1748988572605,0.04163548,155.36,155.34,7.45316023]
[1748988572803,4.55948403,155.35,155.33,0.04080877]
[1748988573013,2.105,155.35,155.33,0.04080877]
[1748988573411,6.433,155.34,155.33,0.04080877]
[1748988573708,10.99402381,155.34,155.33,0.04080877]
[1748988573907,4.56132562,155.34,155.33,0.04080877]
[1748988574113,2.105,155.35,155.33,0.04080877]
[1748988574709,4.56387915,155.34,155.33,0.04080877]
[1748988574909,6.433,155.34,155.33,0.04080877]
[1748988575307,10.9968945,155.34,155.33,0.04080877]
[1748988575509,6.433,155.34,155.33,0.04080877]
[1748988575709,10.99714439,155.34,155.33,0.04080877]
[1748988575909,6.433,155.34,155.33,0.04080877]
[1748988577005,10.99720791,155.34,155.33,0.04080877]
[1748988577210,6.433,155.34,155.33,0.04080877]
[1748988577923,10.99223255,155.34,155.33,0.04080877]
[1748988578218,6.433,155.34,155.33,0.04080877]
[1748988578518,10.99224374,155.34,155.33,0.04080877]
[1748988578725,6.433,155.34,155.33,0.04080877]
[1748988579710,10.99301522,155.34,155.33,0.04080877]
[1748988579914,11.00001522,155.34,155.21,40.62]
[1748988580116,7.45316023,155.3,155.22,7.45316023]
[1748988580318,4.3106,155.33,155.19,556.32]
[1748988580319,6.438,155.22,155.19,556.32]
[1748988580518,4.56282958,155.21,155.18,143.69953659]
[1748988580719,4.1665,155.25,155.18,7.45316023]
[1748988581016,4.1665,155.25,155.18,7.49915099]
[1748988581017,6.4392,155.2,155.18,7.49915099]
[1748988581814,6.48565259,155.21,155.18,7.49915099]
[1748988582015,0.04705259,155.21,155.18,7.49915099]
[1748988582909,0.04705259,155.21,155.18,0.04599076]
[1748988583110,7.50021282,155.21,155.18,0.04599076]
[1748988583310,7.50021282,155.21,155.13,7.45316023]
[1748988583512,6.4407,155.16,155.13,7.45316023]
[1748988583711,7.45316023,155.19,155.13,7.45316023]
[1748988583918,2.2654,155.18,155.13,7.45316023]
[1748988584223,7.49774794,155.17,155.14,0.04556338]
[1748988584424,9.68544794,155.17,155.14,0.04556338]
[1748988584615,2.23228771,155.17,155.14,0.04556338]
[1748988585115,6.4405,155.16,155.14,0.04556338]
[1748988585508,2.23228771,155.17,155.14,0.04556338]
[1748988585714,6.4409,155.15,155.14,0.04556338]
[1748988586208,6.4407,155.16,155.14,0.04556338]
[1748988587318,16.12564794,155.17,155.14,0.04556338]
[1748988587518,9.68544794,155.17,155.14,6.48666338]
[1748988588217,9.68544794,155.17,155.14,0.04556338]
[1748988588417,13.89436023,155.15,155.08,48.07316023]
[1748988588614,13.89436023,155.15,155.11,6.4426]
[1748988588819,7.45316023,155.15,155.08,48.07316023]
[1748988589015,6.4415,155.14,155.08,48.07316023]
[1748988589419,0.04694582,155.13,155.09,0.04896589]
[1748988590024,0.04694582,155.13,155.11,6.4425]
[1748988590624,0.04694582,155.13,155.12,6.4422]
[1748988592225,0.04694582,155.13,155.12,13.89536023]
[1748988592726,0.04694582,155.13,155.12,54.21536023]
[1748988595030,4.582e-05,155.13,155.12,54.21536023]
[1748988595325,4.582e-05,155.13,155.09,0.04896589]
[1748988595526,7.45320605,155.13,155.09,0.04896589]
[1748988597134,4.582e-05,155.13,155.09,0.04896589]
[1748988598236,4.582e-05,155.13,155.09,7.50212612]
[1748988598733,4.582e-05,155.13,155.11,6.4422]
[1748988599738,4.582e-05,155.13,155.12,6.4422]
[1748988601638,4.582e-05,155.13,155.12,46.7822]
[1748988602339,4.582e-05,155.13,155.12,40.34]
[1748988602538,4.582e-05,155.13,155.09,0.04896589]
[1748988602738,4.582e-05,155.13,155.1,7.45316023]
[1748988602935,4.582e-05,155.13,155.11,6.4423]
[1748988603329,4.582e-05,155.13,155.12,7.45316023]
[1748988603534,19.3041,155.31,155.12,7.45316023]
[1748988603535,2.1626,155.22,155.12,55.24632046]
[1748988603737,2.1626,155.22,155.18,7.45316023]
[1748988603931,2.1626,155.22,155.2,7.45316023]
[1748988604140,41.46154954,155.28,155.2,7.45316023]
[1748988604141,2.2325,155.25,155.2,7.45316023]
[1748988604535,0.04578675,155.24,155.21,0.04355048]
[1748988604935,0.04578675,155.24,155.17,7.45316023]
[1748988604936,7.49894698,155.24,155.17,7.45316023]
[1748988605136,6.4391,155.2,155.17,7.45316023]
[1748988605335,47.79316023,155.24,155.17,7.45316023]
[1748988605940,0.04897773,155.22,155.19,0.04640792]
[1748988606136,6.4388,155.2,155.19,0.04640792]
[1748988606843,2.256,155.21,155.14,7.45316023]
[1748988607234,2.256,155.21,155.14,6.4413]
[1748988607636,0.04352397,155.19,155.16,0.04915045]
[1748988607846,6.4397,155.18,155.16,0.04915045]
[1748988608934,6.4401,155.17,155.16,0.04915045]
[1748988610839,13.47200766,155.18,155.11,40.32]
[1748988611043,11.20730766,155.16,155.07,40.32]
[1748988611246,11.20730766,155.15,155.08,6.4435]
[1748988611841,11.20730766,155.15,155.07,40.32]
[1748988611842,6.4426,155.11,155.1,0.04284473]
[1748988612550,6.4424,155.12,155.1,0.04284473]
[1748988613243,6.4426,155.11,155.1,0.04284473]
[1748988613745,11.2563068,155.13,155.07,6.4442]
[1748988614246,6.4432,155.1,155.07,6.4442]
[1748988614438,0.04899914,155.13,155.06,11.20730766]
[1748988614642,2.0504,155.14,155.06,11.20730766]
[1748988614942,6.49191971,155.11,155.08,6.4435]
[1748988615343,0.04911971,155.11,155.08,6.4435]
[1748988615541,6.4432,155.1,155.07,6.4441]
[1748988617845,6.4436,155.09,155.06,17.65180766]
[1748988618142,6.4436,155.09,155.06,11.20730766]
[1748988618748,6.4432,155.1,155.07,6.4439]
[1748988618944,6.4432,155.1,155.06,11.20730766]
[1748988619745,0.04911971,155.11,155.09,6.4434]
[1748988619946,0.04911971,155.11,155.06,11.20730766]
[1748988620351,0.04911971,155.11,155.1,17.65030766]
[1748988621040,0.04911971,155.11,155.1,6.443]
[1748988621250,6.49171971,155.11,155.07,40.34]
[1748988621954,6.49171971,155.11,155.08,6.4437]
[1748988622146,6.4431,155.1,155.07,40.34]
[1748988622654,0.04911971,155.11,155.08,6.4438]
[1748988622855,6.49191971,155.11,155.08,6.4438]
[1748988623154,0.04911971,155.11,155.09,6.4434]
[1748988623355,6.49171971,155.11,155.07,40.34]
[1748988623853,0.04911971,155.11,155.07,40.34]
[1748988624054,0.04911971,155.11,155.1,11.20730766]
[1748988624547,0.04911971,155.11,155.1,17.65030766]
[1748988625845,4.3742,155.18,155.16,6.4404]
[1748988626046,4.3742,155.18,155.08,47.98940337]
[1748988626257,4.3742,155.18,155.11,11.20730766]
[1748988626647,4.3742,155.18,155.14,6.4413]
[1748988626852,4.3742,155.18,155.11,11.20730766]
[1748988627158,0.04316766,155.16,155.13,0.04412823]
[1748988627351,6.48396766,155.16,155.13,6.48572823]
[1748988628652,6.48396766,155.16,155.14,6.4411]
[1748988628851,6.48396766,155.16,155.13,0.04412823]
[1748988629054,0.04316766,155.16,155.15,11.20730766]
[1748988629257,0.04316766,155.16,155.15,7.46913016]
[1748988629557,0.04316766,155.16,155.15,13.91003016]
[1748988630457,0.04316766,155.16,155.14,6.4411]
[1748988630955,0.04316766,155.16,155.13,0.04412823]
[1748988631150,0.04316766,155.16,155.15,13.91003016]
[1748988636057,2.1207,155.2,155.19,6.4393]
[1748988636257,2.1207,155.2,155.19,13.90843016]
[1748988638260,0.04513882,155.21,155.2,6.4388]
[1748988653272,0.04513882,155.21,155.2,13.90793016]
[1748988657065,0.04513882,155.21,155.18,0.04922527]
[1748988657973,0.04513882,155.21,155.11,556.4]
[1748988658176,6.4416,155.14,155.09,7.46913016]
[1748988658368,7.46913016,155.15,155.09,7.46913016]
[1748988658573,7.46913016,155.15,155.08,7.46913016]
[1748988658974,2.1758,155.16,155.1,7.46913016]
[1748988659173,0.04158201,155.13,155.1,7.46913016]
[1748988659381,6.48338201,155.13,155.1,7.46913016]
[1748988659973,0.04158201,155.13,155.1,13.91183016]
[1748988660176,0.04158201,155.13,155.1,7.46913016]
[1748988660378,6.48358201,155.13,155.1,7.46913016]
[1748988661084,6.48358201,155.13,155.09,0.0430621]
[1748988661285,6.48358201,155.13,155.1,6.4427]
[1748988661477,0.04158201,155.13,155.09,0.0430621]
[1748988662081,0.04158201,155.13,155.11,6.4423]
[1748988662287,0.04158201,155.13,155.09,0.0430621]
[1748988662480,0.04158201,155.13,155.1,7.46913016]
[1748988662684,0.04158201,155.13,155.11,6.4426]
[1748988662878,0.04158201,155.13,155.1,7.46913016]
[1748988663179,0.04158201,155.13,155.12,13.91133016]
[1748988664583,41.8041,155.21,155.16,6.4401]
[1748988665081,41.8041,155.21,155.15,13.90973016]
[1748988665284,9.59143016,155.2,155.15,6.4406]
[1748988665486,0.04614715,155.19,155.16,0.04800703]
[1748988665787,6.4399,155.18,155.16,0.04800703]
[1748988667489,7.46913016,155.18,155.11,39.74]
[1748988667988,7.46913016,155.18,155.12,7.46913016]
[1748988668190,0.04614715,155.19,155.14,7.46913016]
[1748988668485,0.04614715,155.19,155.15,0.03663708]
[1748988668691,6.4399,155.18,155.15,6.47733708]
[1748988670077,0.04614715,155.19,155.15,6.47733708]
[1748988670078,6.4402,155.17,155.15,0.03663708]
[1748988671195,6.4402,155.17,155.15,6.47753708]
[1748988672489,6.4397,155.18,155.15,6.47753708]
[1748988673209,6.4401,155.17,155.15,6.47753708]
[1748988673388,0.04614715,155.19,155.16,6.4405]
[1748988673690,6.4397,155.18,155.15,0.03663708]
[1748988673883,0.04614715,155.19,155.15,0.03663708]
[1748988674794,6.4403,155.17,155.15,0.03663708]
[1748988675395,6.4403,155.17,155.15,6.47753708]
[1748988675888,0.04614715,155.19,155.16,6.4405]
[1748988676390,6.4397,155.18,155.15,6.47733708]
[1748988676587,0.04614715,155.19,155.15,6.47733708]
[1748988676588,0.04614715,155.19,155.15,0.03663708]
[1748988676991,6.4403,155.17,155.15,0.03663708]
[1748988677194,0.04614715,155.19,155.15,0.03663708]
[1748988677387,0.04614715,155.19,155.16,6.4404]
[1748988677388,6.48544715,155.19,155.16,6.4404]
[1748988678695,6.4398,155.18,155.16,6.4404]
[1748988679396,0.04614715,155.19,155.15,0.03663708]
[1748988679397,6.48554715,155.19,155.17,6.44]
[1748988679598,0.04614715,155.19,155.15,0.03663708]
[1748988680686,6.4399,155.18,155.15,6.47733708]
[1748988680892,0.04614715,155.19,155.15,0.03663708]
[1748988681295,6.48564715,155.19,155.16,6.4403]
[1748988681495,6.48564715,155.19,155.15,0.03663708]